bitfinex/quotes_ETHUSD_20250724
["timestamp","ask_amount","ask_price","bid_price","bid_amount"]
[1753356245825,0.002,3650.8,3650.7,35.43520737]
[1753356246226,0.002,3650.8,3650.7,34.27560737]
[1753356246638,1e-08,3650.8,3650.7,34.27560737]
[1753356246967,1e-08,3650.8,3650.7,50.08049137]
[1753356247154,1e-08,3650.8,3650.7,44.21046137]
[1753356247454,1e-08,3650.8,3650.7,39.50489137]
[1753356247828,1e-08,3650.8,3650.7,48.52118437]
[1753356248140,1e-08,3650.8,3650.7,29.11773037]
[1753356248744,1e-08,3650.8,3650.7,28.16753037]
[1753356248951,1e-08,3650.8,3650.7,38.97163937]
[1753356249243,1e-08,3650.8,3650.7,36.44778237]
[1753356249957,1e-08,3650.8,3650.7,38.96075737]
[1753356250178,1e-08,3650.8,3650.7,23.64115537]
[1753356250308,1e-08,3650.8,3650.7,23.63715537]
[1753356250512,1e-08,3650.8,3650.7,13.14591737]
[1753356250749,1e-08,3650.8,3650.7,17.57191737]
[1753356252054,1e-08,3650.8,3650.7,13.14591737]
[1753356252224,1e-08,3650.8,3650.7,13.92981937]
[1753356252421,1e-08,3650.8,3650.7,6.71749137]
[1753356252625,1e-08,3650.8,3650.7,14.14249137]
[1753356253415,1e-08,3650.8,3650.7,18.36666737]
[1753356254128,1e-08,3650.8,3650.7,11.40329067]
[1753356254310,1e-08,3650.8,3650.7,14.14249137]
[1753356255253,1e-08,3650.8,3650.7,5.57379067]
[1753356255448,1e-08,3650.8,3650.7,13.19029137]
[1753356255850,1e-08,3650.8,3650.7,14.14049137]
[1753356256549,1e-08,3650.8,3650.7,9.8728007]
[1753356256754,1e-08,3650.8,3650.7,27.2110797]
[1753356256953,1e-08,3650.8,3650.7,30.2110797]
[1753356258256,1e-08,3650.8,3650.7,37.1615837]
[1753356258554,1e-08,3650.8,3650.7,36.6236617]
[1753356258753,1e-08,3650.8,3650.7,39.32275346]
[1753356259332,1e-08,3650.8,3650.7,40.48099746]
[1753356259720,1e-08,3650.8,3650.7,39.35399746]
[1753356260219,1e-08,3650.8,3650.7,15.57189246]
[1753356260421,1e-08,3650.8,3650.7,19.42083246]
[1753356260757,1e-08,3650.8,3650.7,17.81791546]
[1753356261120,1e-08,3650.8,3650.7,29.96501146]
[1753356261320,1e-08,3650.8,3650.7,31.84803946]
[1753356263281,1e-08,3650.8,3650.7,40.90210846]
[1753356263477,1e-08,3650.8,3650.7,38.79108046]
[1753356263782,1e-08,3650.8,3650.7,23.13006546]
[1753356265665,1e-08,3650.8,3650.7,24.77306546]
[1753356265871,1e-08,3650.8,3650.7,23.13006546]
[1753356266580,1e-08,3650.8,3650.7,18.90869246]
[1753356266767,1e-08,3650.8,3650.7,4.29]
[1753356266970,1e-08,3650.8,3650.7,8.707]
[1753356267279,1e-08,3650.8,3650.7,11.707]
[1753356267459,1e-08,3650.8,3650.7,18.6754067]
[1753356267846,1e-08,3650.8,3650.7,46.3925007]
[1753356268042,1e-08,3650.8,3650.7,49.92079246]
[1753356268882,1e-08,3650.8,3650.7,49.87809246]
[1753356269072,1e-08,3650.8,3650.7,48.60979046]
[1753356269447,1e-08,3650.8,3650.7,44.91225746]
[1753356269779,1e-08,3650.8,3650.7,19.87809246]
[1753356269989,1e-08,3650.8,3650.7,27.97369046]
[1753356271080,1e-08,3650.8,3650.7,49.87809246]
[1753356271745,1e-08,3650.8,3650.7,51.52109246]
[1753356271948,1e-08,3650.8,3650.7,33.75367346]
[1753356272368,1e-08,3650.8,3650.7,21.52109246]
[1753356272685,1e-08,3650.8,3650.7,47.29915946]
[1753356272882,1e-08,3650.8,3650.7,49.88415946]
[1753356273181,1e-08,3650.8,3650.7,40.55272046]
[1753356273371,1e-08,3650.8,3650.7,28.67012646]
[1753356273570,1e-08,3650.8,3650.7,30.31312646]
[1753356273959,1e-08,3650.8,3650.7,51.52109246]
[1753356274986,1e-08,3650.8,3650.7,44.11952946]
[1753356275173,1e-08,3650.8,3650.7,40.39472546]
[1753356275565,1e-08,3650.8,3650.7,36.96953546]
[1753356275961,1e-08,3650.8,3650.7,49.84595146]
[1753356276677,1e-08,3650.8,3650.7,49.33283446]
[1753356277190,1e-08,3650.8,3650.7,54.09783446]
[1753356278094,0.002,3651.1,3650.7,54.09783446]
[1753356278095,1e-08,3651.1,3651.0,32.76274562]
[1753356278253,0.002,3651.5,3651.4,5.69647557]
[1753356278457,0.002,3651.5,3651.4,47.53427557]
[1753356278687,1e-08,3651.5,3651.4,47.98037557]
[1753356278890,1e-08,3651.6,3651.5,42.98640056]
[1753356279055,1e-08,3651.6,3651.5,47.03909232]
[1753356279255,1e-08,3651.6,3651.5,56.7439192]
[1753356281192,1e-08,3651.6,3651.5,59.12014053]
[1753356282463,0.002,3652.3,3651.5,59.12014053]
[1753356282464,0.002,3652.3,3652.2,36.28807568]
[1753356282672,0.002,3652.3,3652.2,52.75951326]
[1753356282966,0.002,3652.3,3652.2,60.52002028]
[1753356283265,0.002,3652.3,3652.2,49.16321628]
[1753356283465,0.002,3652.3,3652.2,41.83071328]
[1753356283670,0.002,3652.3,3652.2,31.48483469]
[1753356284208,0.002,3652.3,3652.2,24.45398569]
[1753356284694,0.002,3652.3,3652.2,25.00398569]
[1753356285199,0.002,3652.3,3652.2,51.15709669]
[1753356285874,0.002,3652.5,3652.4,33.28792574]
[1753356286200,0.002,3652.5,3652.4,55.33816281]
[1753356286379,0.002,3652.5,3652.4,56.82856281]
[1753356287699,0.002,3652.5,3652.4,68.2785628]
[1753356287914,0.002,3652.5,3652.4,58.4476508]
[1753356288078,0.002,3652.5,3652.4,56.5921078]
[1753356288278,0.002,3652.5,3652.4,68.2785628]
[1753356288822,0.002,3652.5,3652.4,61.3475828]
[1753356289310,0.002,3652.5,3652.4,66.6434828]
[1753356289914,0.002,3652.5,3652.4,27.69627721]
[1753356290073,0.002,3652.5,3652.4,32.10027721]
[1753356290278,0.002,3652.5,3652.4,52.22933421]
[1753356290715,1e-08,3652.6,3652.5,38.74425078]
[1753356290908,1e-08,3652.6,3652.5,47.22734254]
[1753356291215,0.002,3653.1,3653.0,7.93047604]
[1753356291509,0.002,3653.1,3653.0,25.27011502]
[1753356291717,0.002,3653.1,3653.0,26.65111502]
[1753356292275,0.002,3653.1,3653.0,47.06060202]
[1753356292479,0.002,3653.1,3653.0,34.14441178]
[1753356292679,0.002,3653.1,3653.0,32.50141178]
[1753356292888,0.002,3653.1,3653.0,31.12041178]
[1753356293091,0.002,3653.1,3653.0,31.05146202]
[1753356293291,0.9088,3653.1,3653.0,21.72627602]
[1753356293507,0.9088,3653.1,3653.0,5.87427604]
[1753356293698,0.9088,3653.1,3653.0,10.27627604]
[1753356293901,0.9088,3653.1,3652.9,4.28999998]
[1753356293902,1.3831,3653.1,3652.9,4.28999998]
[1753356294099,1.3831,3653.1,3653.0,4.401]
[1753356294100,0.002,3653.1,3653.0,4.401]
[1753356294300,0.002,3653.1,3653.0,7.42837476]
[1753356294540,0.002,3653.1,3653.0,7.401]
[1753356294846,0.9088,3653.1,3653.0,7.951]
[1753356295391,1.3831,3653.1,3653.0,7.951]
[1753356295844,1.3831,3653.1,3653.0,3.0]
[1753356296124,1.3831,3653.1,3653.0,7.401]
[1753356296426,4.92350111,3653.1,3653.0,7.4]
[1753356296626,4.92350111,3653.1,3653.0,4.4]
[1753356297932,0.7582,3653.0,3652.6,3.0]
[1753356298113,0.9068,3652.9,3652.7,4.4]
[1753356298308,0.9068,3652.8,3652.7,7.95]
[1753356298508,0.7582,3653.0,3652.8,5.73760378]
[1753356298738,0.7582,3653.0,3652.9,7.399]
[1753356299327,1.2116,3653.0,3652.9,7.399]
[1753356299703,1.6859,3653.0,3652.9,7.399]
[1753356300346,4.42337604,3653.0,3652.9,7.399]
[1753356300545,3.54020087,3652.7,3652.6,3.0]
[1753356300708,3.51957583,3652.6,3652.5,3.76713073]
[1753356300908,4.44727583,3652.6,3652.5,3.76713073]
[1753356301218,4.44727583,3652.6,3652.5,0.20334832]
[1753356301411,4.44727583,3652.6,3652.3,4.398]
[1753356301412,2.73792574,3652.4,3652.3,4.398]
[1753356301613,3.66562574,3652.4,3652.3,4.398]
[1753356302246,0.9277,3652.4,3652.3,4.398]
[1753356302650,3.66562574,3652.4,3652.3,4.398]
[1753356303248,0.4534,3652.4,3652.3,4.398]
[1753356303935,0.4534,3652.4,3652.3,4.5348]
[1753356304127,0.6582,3652.4,3652.3,4.5358]
[1753356304839,4.14662574,3652.4,3652.3,4.397]
[1753356305739,1.4087,3652.4,3652.3,4.397]
[1753356305940,1.2039,3652.4,3652.3,4.397]
[1753356306155,1.2039,3652.4,3652.3,4.5338]
[1753356306835,1.4087,3652.4,3652.3,4.5338]
[1753356307353,1.2039,3652.4,3652.3,4.5338]
[1753356307675,4.54099711,3652.4,3652.3,4.397]
[1753356307879,4.54099711,3652.4,3652.3,0.001]
[1753356308047,4.54099711,3652.4,3652.3,4.396]
[1753356308247,4.54099711,3652.4,3652.3,0.001]
[1753356309859,3.54622557,3651.6,3651.5,0.001]
[1753356310061,3.54622557,3651.6,3651.5,4.395]
[1753356310371,4.47392557,3651.6,3651.5,4.395]
[1753356311783,4.79145685,3651.6,3651.5,0.001]
[1753356311995,4.79145685,3651.6,3651.5,4.395]
[1753356312138,4.92825685,3651.6,3651.5,0.001]
[1753356313802,2.73882559,3651.2,3651.1,0.04]
[1753356314017,3.50892559,3651.2,3651.1,0.04]
[1753356314215,4.83099696,3651.2,3651.1,0.04]
[1753356314425,4.43662559,3651.2,3651.1,0.04]
[1753356316803,4.43662559,3651.2,3651.1,1e-08]
[1753356317002,7.43662559,3651.2,3651.1,1e-08]
[1753356320205,6.4898007,3650.7,3650.6,1e-08]
[1753356320548,10.8808007,3650.7,3650.6,1e-08]
[1753356320846,11.8016007,3650.7,3650.6,1e-08]
[1753356323224,11.8016007,3650.7,3650.1,0.041]
[1753356323404,3.55597591,3650.2,3650.1,1e-08]
[1753356323611,0.8164,3649.6,3649.2,0.001]
[1753356323955,3.54557646,3649.4,3649.2,0.001]
[1753356324338,4.46637646,3649.4,3649.2,0.001]
[1753356325956,3.99897646,3649.4,3649.2,0.001]
[1753356326162,8.38897646,3649.4,3649.2,0.001]
[1753356326664,4.46637646,3649.4,3649.2,0.001]
[1753356326865,9.34844399,3649.4,3649.2,0.001]
[1753356328858,9.39224399,3649.4,3649.2,0.001]
[1753356329226,4.17957646,3649.4,3649.2,0.001]
[1753356329429,0.1368,3649.4,3649.2,0.001]
[1753356329624,4.36684216,3649.8,3649.3,0.9466]
[1753356329822,2.74017646,3649.4,3649.3,0.4556]
[1753356330027,2.74017646,3649.4,3649.3,0.001]
[1753356331372,0.1368,3649.6,3649.3,0.001]
[1753356331656,2.74014666,3649.5,3649.3,0.001]
[1753356332065,2.74017646,3649.4,3649.3,0.001]
[1753356332629,2.74013279,3649.5,3649.3,0.001]
[1753356332830,0.1368,3649.6,3649.3,0.001]
[1753356332831,1.6269013,3649.8,3649.3,0.9466]
[1753356333054,2.74006138,3649.6,3649.3,0.492]
[1753356333269,2.74006138,3649.6,3649.4,0.4546]
[1753356333825,2.73997241,3649.7,3649.3,0.492]
[1753356334030,4.50360271,3649.8,3649.3,0.9466]
[1753356334257,2.73996422,3649.7,3649.3,0.9466]
[1753356334657,2.73996422,3649.7,3649.4,0.4546]
[1753356334839,4.5036032,3649.8,3649.4,0.4546]
[1753356335056,1.7637013,3649.8,3649.3,0.8192]
[1753356335233,1.7637013,3649.8,3649.5,0.9456]
[1753356335565,1.6269013,3649.8,3649.6,1.0824]
[1753356335772,1.6269013,3649.8,3649.7,0.9456]
[1753356338070,1.6269013,3649.8,3649.7,0.4546]
[1753356338275,2.1241013,3649.8,3649.3,0.001]
[1753356338477,2.73995749,3649.7,3649.3,1.0834]
[1753356338640,2.73995749,3649.7,3649.3,0.6288]
[1753356338974,1.7637013,3649.8,3649.4,0.4546]
[1753356339376,1.7637013,3649.8,3649.5,0.4546]
[1753356339577,1.6269013,3649.8,3649.6,0.9456]
[1753356339780,1.6269013,3649.8,3649.3,0.1378]
[1753356339985,4.36684198,3649.8,3649.3,0.1378]
[1753356340185,0.4972,3649.7,3649.3,0.1378]
[1753356340688,0.4972,3649.7,3649.3,2.87802889]
[1753356340981,1.6269013,3649.8,3649.4,0.9456]
[1753356341279,1.6269013,3649.8,3649.5,3.6856548]
[1753356341488,1.6269013,3649.8,3649.6,0.4546]
[1753356341651,1.6269013,3649.8,3649.6,3.68562296]
[1753356341983,1.6269013,3649.8,3649.6,0.9456]
[1753356342779,1.6269013,3649.8,3649.3,2.87801932]
[1753356342956,1.6269013,3649.8,3649.4,3.6857523]
[1753356343158,1.6269013,3649.8,3649.5,2.7401001]
[1753356343378,1.6269013,3649.8,3649.5,3.1947001]
[1753356343588,1.6269013,3649.8,3649.6,0.9456]
[1753356344344,1.6269013,3649.8,3649.3,0.1378]
[1753356344574,1.6269013,3649.8,3649.3,3.33264671]
[1753356344741,1.6269013,3649.8,3649.3,3.82364671]
[1753356345549,1.6269013,3649.8,3649.4,0.4546]
[1753356345749,1.6269013,3649.8,3649.4,0.9456]
[1753356346554,1.6269013,3649.8,3649.5,2.74004792]
[1753356346772,1.6269013,3649.8,3649.6,0.4546]
[1753356346973,1.6269013,3649.8,3649.7,3.19455122]
[1753356347175,4.05160505,3651.0,3650.4,2.73940619]
[1753356347486,3.55442557,3651.0,3650.5,0.9456]
[1753356347647,0.4972,3650.9,3650.3,7.12047111]
[1753356347843,3.23625592,3650.9,3650.3,4.381]
[1753356348072,0.4972,3650.9,3650.3,7.12049947]
[1753356348277,3.23630873,3650.9,3650.3,7.12049947]
[1753356348792,4.05157875,3651.0,3650.3,4.381]
[1753356348993,1.3126,3651.0,3650.3,7.12049444]
[1753356349165,1.3126,3651.0,3650.3,4.381]
[1753356349490,0.8174,3651.2,3650.7,2.73917738]
[1753356349693,1.3146,3651.2,3650.7,2.73917738]
[1753356349983,4.05343596,3651.2,3650.4,0.9456]
[1753356350197,2.73890291,3651.1,3650.5,2.73933716]
[1753356350352,1.3146,3651.2,3650.4,3.68502004]
[1753356350553,2.7389006,3651.1,3650.5,2.73934034]
[1753356352087,4.05344141,3651.2,3650.5,2.73935077]
[1753356352289,2.73891519,3651.1,3650.5,2.73935077]
[1753356352692,2.73891519,3651.1,3650.5,2.73932386]
[1753356353290,1.3146,3651.2,3650.4,0.9456]
[1753356353598,1.3146,3651.2,3650.6,2.73920145]
[1753356354452,1.3146,3651.2,3650.7,2.73918051]
[1753356354653,0.8174,3651.2,3650.8,2.73908293]
[1753356354855,0.002,3651.2,3650.9,0.491]
[1753356355092,0.002,3651.2,3650.8,7.58491424]
[1753356355261,0.002,3651.2,3650.9,2.73904308]
[1753356355472,0.002,3651.2,3650.9,3.20784308]
[1753356355857,0.002,3651.2,3650.9,0.4688]
[1753356356498,0.002,3651.2,3650.9,3.20784761]
[1753356357182,0.002,3651.2,3650.9,3.20782515]
[1753356357494,0.002,3651.2,3651.0,0.4688]
[1753356358700,0.002,3651.2,3650.8,7.2529102]
[1753356358884,0.002,3651.2,3650.9,3.20778313]
[1753356359691,0.002,3651.2,3650.9,0.4688]
[1753356359993,0.002,3651.2,3650.9,3.20784653]
[1753356360559,0.002,3651.2,3650.9,0.4688]
[1753356361477,0.002,3651.2,3651.0,3.68293408]
[1753356361674,0.002,3651.2,3651.0,0.944]
[1753356361881,0.002,3651.2,3650.8,4.5138]
[1753356362086,0.002,3651.2,3650.8,4.9826]
[1753356363094,0.002,3651.2,3650.8,7.72171466]
[1753356363495,0.002,3651.2,3650.8,4.9826]
[1753356363695,0.002,3651.2,3650.9,0.944]
[1753356364004,0.002,3651.2,3651.0,2.73892445]
[1753356364209,0.002,3651.2,3651.0,3.68292445]
[1753356364368,0.002,3651.2,3651.1,0.4688]
[1753356364812,0.002,3651.2,3651.1,4.8408]
[1753356365001,0.002,3651.2,3651.1,7.5797006]
[1753356365189,0.002,3651.2,3651.1,4.8408]
[1753356365907,0.002,3651.2,3651.1,4.372]
[1753356367106,0.002,3651.2,3651.1,7.1109006]
[1753356367678,0.002,3651.2,3651.1,8.0549006]
[1753356368011,0.002,3651.2,3651.1,9.13930956]
[1753356368571,0.002,3651.2,3650.7,2.7391449]
[1753356368767,0.4741,3651.2,3650.9,0.1368]
[1753356369887,0.002,3651.2,3650.9,2.87580607]
[1753356370081,0.002,3651.2,3650.9,3.34460607]
[1753356370615,0.002,3651.2,3650.9,0.6056]
[1753356371133,0.002,3651.2,3650.9,3.34464125]
[1753356371621,0.002,3651.2,3650.9,0.6056]
[1753356372117,0.002,3651.2,3650.9,0.1368]
[1753356372306,0.4741,3651.2,3650.9,0.1368]
[1753356373087,0.002,3651.2,3650.9,0.1368]
[1753356374411,2.74084777,3651.2,3650.9,0.1368]
[1753356374619,0.002,3651.2,3650.9,0.1368]
[1753356374920,2.74082979,3651.2,3650.9,0.1368]
[1753356375145,2.73897562,3651.0,3650.6,4.50037851]
[1753356375442,3.21119989,3650.9,3650.7,4.367]
[1753356375582,2.73912567,3650.8,3650.7,4.367]
[1753356375790,3.31808748,3651.0,3650.9,125.06137433]
[1753356376225,2.87578748,3651.0,3650.9,125.06137433]
[1753356376519,0.1368,3651.0,3650.9,125.06137433]
[1753356377204,0.1368,3651.0,3650.9,129.42737433]
[1753356377527,2.74083312,3651.2,3650.9,129.42737433]
[1753356377528,0.002,3651.2,3650.9,135.11724605]
[1753356377709,0.002,3651.2,3651.0,0.944]
[1753356378028,0.002,3651.2,3651.1,4.365]
[1753356378231,0.002,3651.2,3651.1,5.309]
[1753356378531,0.002,3651.2,3651.1,8.00809176]
[1753356378731,0.002,3651.2,3651.1,7.53289176]
[1753356378896,0.002,3651.2,3651.1,8.00809176]
[1753356380209,0.002,3651.2,3651.1,10.27819236]
[1753356380409,0.002,3651.2,3651.1,10.88379236]
[1753356384115,0.002,3651.2,3651.1,8.14489176]
[1753356384616,0.002,3651.2,3651.1,10.88379236]
[1753356385323,0.002,3651.2,3651.1,2.83589176]
[1753356385523,0.002,3651.2,3650.9,125.06137433]
[1753356385839,0.002,3651.2,3651.0,4.361]
[1753356386208,2.73974546,3650.0,3649.2,0.001]
[1753356386411,0.8147,3649.8,3649.2,0.001]
[1753356386611,0.8147,3649.8,3649.2,4.8372]
[1753356386810,0.8147,3649.8,3649.6,0.4752]
[1753356387168,0.7628,3650.8,3649.7,0.9387]
[1753356387343,0.7628,3650.8,3649.7,0.4635]
[1753356387646,0.7628,3650.8,3649.8,3.67850921]
[1753356387847,0.7628,3650.8,3649.9,7.10078429]
[1753356388141,0.7628,3650.8,3650.0,0.9387]
[1753356388340,0.7628,3650.8,3650.4,2.73935865]
[1753356388706,0.7628,3650.8,3650.5,0.4772]
[1753356389142,0.7628,3650.8,3650.3,4.8382]
[1753356389310,0.7628,3650.8,3650.3,7.5776517]
[1753356389623,0.7628,3650.8,3650.4,2.73942373]
[1753356389825,0.7628,3650.8,3650.4,0.4635]
[1753356390038,0.002,3651.3,3650.9,2.73904354]
[1753356390039,0.7631,3651.1,3650.9,2.73904354]
[1753356390240,0.002,3651.3,3651.0,0.9407]
[1753356390454,0.002,3651.3,3651.1,2.7389006]
[1753356391037,0.002,3651.3,3651.1,3.2161006]
[1753356391239,0.002,3651.3,3651.1,3.6796006]
[1753356392660,0.002,3651.3,3651.1,8.0396006]
[1753356394726,0.002,3651.3,3651.1,3.6796006]
[1753356394927,0.002,3651.3,3651.1,8.0386006]
[1753356395961,0.002,3651.3,3651.1,3.6796006]
[1753356396263,0.002,3651.3,3651.1,8.1754006]
[1753356399255,0.002,3651.3,3651.1,3.8164006]
[1753356399468,0.002,3651.3,3651.1,8.1744006]
[1753356404965,1e-08,3651.3,3651.2,6.28882559]
[1753356405174,0.04,3651.9,3651.8,3.28837559]
[1753356405331,0.04,3651.9,3651.8,11.47085934]
[1753356405530,0.04,3651.9,3651.8,12.52097559]
[1753356406034,0.04,3651.9,3651.8,14.04691905]
[1753356406230,1e-08,3652.0,3651.9,6.28830061]
[1753356406466,1e-08,3652.0,3651.9,7.22900061]
[1753356407878,1e-08,3652.0,3651.9,15.40143261]
[1753356408092,1e-08,3652.0,3651.9,16.23043261]
[1753356408251,1e-08,3652.0,3651.9,18.92952437]
[1753356409346,1e-08,3652.0,3651.9,16.68277837]
[1753356409693,0.002,3653.1,3653.0,4.07027604]
[1753356409849,0.002,3653.1,3653.0,8.69876471]
[1753356410051,0.002,3653.1,3653.0,9.63946471]
[1753356410370,0.002,3653.1,3653.0,9.50177604]
[1753356414891,0.002,3653.1,3653.0,13.79177602]
[1753356415280,0.002,3653.1,3653.0,7.16427602]
[1753356415484,0.7863,3653.1,3653.0,11.37847602]
[1753356416470,0.7863,3653.1,3653.0,11.58594506]
[1753356417878,0.7863,3653.1,3653.0,8.84846902]
[1753356418302,0.7863,3653.1,3653.0,11.58594506]
[1753356418709,0.002,3653.1,3653.0,11.84887602]
[1753356419686,0.002,3653.1,3653.0,11.80573124]
[1753356419902,0.002,3653.1,3653.0,14.11682492]
[1753356422228,0.002,3653.1,3653.0,12.59583124]
[1753356422712,0.002,3653.1,3653.0,16.88583122]
[1753356422921,0.002,3653.1,3653.0,31.66652922]
[1753356423225,0.002,3653.3,3653.2,3.28732617]
[1753356423425,0.002,3653.3,3653.2,18.75055617]
[1753356423632,1e-08,3653.3,3653.2,23.17329491]
[1753356426119,1e-08,3653.3,3653.0,10.72106883]
[1753356426120,0.7872,3653.2,3651.9,0.001]
[1753356426339,0.7872,3653.1,3651.9,0.001]
[1753356426483,2.73762593,3652.8,3652.0,4.347]
[1753356426687,0.7872,3652.9,3652.0,4.55192319]
[1753356427018,3.52477166,3652.9,3652.0,7.76053533]
[1753356427184,3.52477478,3652.9,3652.1,3.0]
[1753356427733,0.7872,3652.9,3652.3,2.73795316]
[1753356428083,0.7872,3652.9,3652.4,4.347]
[1753356428279,0.7872,3652.9,3652.4,4.8174]
[1753356430017,3.52475532,3652.9,3652.4,4.347]
[1753356430885,0.7872,3652.9,3652.4,7.08486908]
[1753356431081,0.7872,3652.9,3652.4,4.8174]
[1753356431688,0.7872,3652.9,3652.4,4.347]
[1753356433915,0.7872,3652.9,3652.4,4.8174]
[1753356434429,0.7872,3652.9,3652.5,0.4704]
[1753356434722,0.7872,3652.9,3652.6,0.4704]
[1753356434922,0.7872,3652.9,3652.7,4.346]
[1753356435595,0.8235,3653.2,3652.8,0.4704]
[1753356436004,0.002,3653.1,3652.8,0.4704]
[1753356436207,0.002,3653.1,3652.7,4.4828]
[1753356436416,0.002,3653.1,3652.9,0.4704]
[1753356436607,0.002,3653.1,3653.0,4.345]
[1753356437133,0.002,3653.1,3652.7,0.1368]
[1753356437134,0.37195665,3653.1,3652.7,0.1368]
[1753356437327,0.1368,3653.0,3652.8,4.345]
[1753356439121,0.1368,3653.0,3652.8,7.08258198]
[1753356439399,0.1368,3653.0,3652.9,2.73755098]
[1753356439796,0.1388,3653.1,3653.0,2.73747604]
[1753356440199,0.002,3653.1,3653.0,2.73747604]
[1753356440399,0.002,3653.1,3653.0,3.20787604]
[1753356441333,0.002,3653.1,3653.0,3.69457604]
[1753356442130,0.002,3653.1,3653.0,4.344]
[1753356442431,0.002,3653.1,3652.7,0.5717]
[1753356442432,0.002,3653.1,3652.6,2.73771274]
[1753356442633,0.27593203,3653.1,3652.1,0.4867]
[1753356442818,0.002,3653.1,3652.7,2.73770087]
[1753356443018,0.002,3653.1,3653.0,2.73747604]
[1753356443234,0.002,3653.1,3653.0,7.08047604]
[1753356443542,0.002,3653.1,3653.0,7.51537604]
[1753356443914,0.002,3653.1,3653.0,8.00207604]
[1753356444322,0.002,3653.1,3653.0,7.51537604]
[1753356444725,0.002,3653.1,3653.0,4.343]
[1753356444931,0.002,3653.1,3653.0,7.08047604]
[1753356445444,0.002,3653.1,3653.0,7.28684641]
[1753356447558,0.002,3653.1,3653.0,10.02028201]
[1753356448763,0.002,3653.1,3653.0,7.28584641]
[1753356449858,0.002,3653.1,3653.0,7.72074641]
[1753356450335,0.002,3653.1,3653.0,8.18074641]
[1753356451340,0.002,3653.1,3653.0,8.96524641]
[1753356452036,0.002,3653.1,3653.0,9.51524641]
[1753356452368,0.002,3653.1,3653.0,10.74053072]
[1753356452928,0.002,3653.1,3653.0,13.87733072]
[1753356453368,0.002,3653.1,3653.0,18.1673307]
[1753356454864,0.002,3653.1,3653.0,17.3828307]
[1753356455967,0.7929,3653.1,3653.0,4.28999998]
[1753356456165,0.7929,3653.1,3653.0,7.02747602]
[1753356456470,0.7929,3653.1,3653.0,11.36747602]
[1753356457374,0.7929,3653.1,3653.0,8.62999998]
[1753356457549,3.53030111,3653.1,3653.0,0.001]
[1753356457748,3.53030111,3653.1,3653.0,4.34]
[1753356458082,0.7929,3653.1,3653.0,4.34]
[1753356461175,0.002,3653.1,3653.0,7.97237604]
[1753356465973,0.002,3653.1,3653.0,8.10917604]
[1753356470455,0.002,3653.1,3653.0,4.337]
[1753356470685,0.8271,3653.1,3653.0,0.001]
[1753356470887,0.8271,3653.1,3653.0,4.337]
[1753356471865,3.56450111,3653.1,3653.0,0.001]
[1753356472275,3.56450111,3653.1,3653.0,4.336]
[1753356473193,3.56450111,3653.1,3653.0,0.001]
[1753356473694,3.56450111,3653.1,3653.0,4.336]
[1753356474096,3.56450111,3653.1,3653.0,0.001]
[1753356474499,6.56450111,3653.1,3653.0,0.001]
[1753356475498,6.56450111,3653.1,3653.0,1e-08]
[1753356476398,7.11450111,3653.1,3653.0,1e-08]
[1753356476771,7.3708236,3653.1,3653.0,1e-08]
[1753356477097,3.56010071,3652.3,3652.2,0.001]
[1753356477500,3.8221,3652.3,3652.2,0.001]
[1753356477714,6.56010071,3652.3,3652.2,0.001]
[1753356477884,3.8221,3652.3,3652.2,0.001]
[1753356478227,3.0,3652.9,3652.2,0.001]
[1753356478370,2.73779303,3652.6,3652.2,0.001]
[1753356478570,0.7628,3652.4,3652.2,0.001]
[1753356480633,0.1368,3652.3,3652.2,0.001]
[1753356481805,0.1368,3652.3,3652.2,3.20337568]
[1753356482007,0.1368,3652.3,3652.2,3.67547568]
[1753356484812,0.1368,3652.3,3652.2,3.20337568]
[1753356484984,0.1368,3652.3,3652.2,2.73907568]
[1753356485497,0.1368,3652.3,3652.2,0.001]
[1753356485701,0.9617,3652.3,3652.2,0.001]
[1753356487181,0.9617,3652.3,3652.2,2.73907568]
[1753356487376,0.9617,3652.3,3652.2,0.001]
[1753356487997,0.1368,3652.3,3652.2,3.21117568]
[1753356488197,0.1368,3652.3,3652.2,3.67547568]
[1753356492907,0.1368,3652.3,3652.2,8.00647568]
[1753356493298,0.1368,3652.3,3652.2,7.53437568]
[1753356495812,0.7682,3652.9,3652.2,6.37168361]
[1753356496035,0.1368,3652.4,3652.3,2.73793485]
[1753356496236,0.1368,3652.4,3652.3,3.20223485]
[1753356496546,0.1368,3652.4,3652.3,3.67433485]
[1753356497237,0.002,3653.1,3652.3,3.67433485]
[1753356497435,0.002,3653.1,3652.8,2.7375595]
[1753356497638,0.38072,3653.1,3652.8,2.7375595]
[1753356497945,0.38072,3653.1,3652.9,2.73754043]
[1753356498244,0.38072,3653.1,3652.8,2.73760182]
[1753356498646,0.1368,3652.9,3652.8,2.73760182]
[1753356501160,0.1368,3652.9,3652.7,4.329]
[1753356501965,0.1368,3652.9,3652.7,7.06669504]
[1753356503293,0.1368,3652.9,3652.7,4.329]
[1753356503448,0.1368,3652.9,3652.7,7.0666904]
[1753356503648,0.1368,3652.9,3652.7,7.5399904]
[1753356503881,0.1368,3652.9,3652.7,4.8023]
[1753356504397,0.1368,3652.9,3652.7,0.4733]
[1753356504685,0.1368,3652.9,3652.5,2.73782914]
[1753356504860,0.1368,3652.9,3652.6,4.8003]
[1753356505270,0.1368,3652.9,3652.3,0.1368]
[1753356505475,3.54454846,3652.6,3652.1,0.001]
[1753356505677,8.13826196,3652.3,3652.1,0.001]
[1753356505986,8.91636196,3652.3,3652.1,0.001]
[1753356507542,11.91636196,3652.3,3652.1,0.001]
[1753356507746,6.55777568,3652.2,3652.1,1e-08]